bitfinex-derivatives/quotes_BTCF0:USTF0_20210104
["timestamp","ask_amount","ask_price","bid_price","bid_amount"]
[1609781048619,4.6257,31110.0,31098.0,0.13632608]
[1609781049118,4.6257,31110.0,31095.0,0.14953]
[1609781049119,4.6257,31110.0,31104.0,0.13632608]
[1609781051122,0.13632608,31105.0,31104.0,0.13632608]
[1609781054327,0.2819,31114.0,31104.0,0.13632608]
[1609781054726,0.2819,31114.0,31101.0,4.4768]
[1609781055329,0.2836,31115.0,31113.0,0.13632608]
[1609781055527,0.14459,31117.0,31113.0,0.13632608]
[1609781055729,0.13114,31124.0,31113.0,0.13632608]
[1609781055928,0.64584497,31127.0,31113.0,0.13632608]
[1609781057228,0.64584497,31127.0,31123.0,0.13632608]
[1609781059132,0.79334498,31125.0,31123.0,0.13632608]
[1609781059332,0.13632608,31124.0,31123.0,0.13632608]
[1609781059532,0.28128608,31124.0,31123.0,0.13632608]
[1609781063234,0.28128608,31124.0,31119.0,0.13632608]
[1609781063633,4.4748,31120.0,31102.0,5.00098]
[1609781064335,0.14496,31124.0,31102.0,0.10408]
[1609781064535,4.8014,31114.0,31095.0,2.29027893]
[1609781064937,4.94965,31114.0,31095.0,2.29027893]
[1609781065138,4.94965,31114.0,31096.0,2.14165133]
[1609781065336,4.94965,31114.0,31100.0,0.13632608]
[1609781067240,0.13632608,31101.0,31100.0,0.13632608]
[1609781068447,0.10132,31103.0,31100.0,0.13632608]
[1609781068650,0.14825,31114.0,31100.0,0.13632608]
[1609781068848,0.14825,31114.0,31100.0,4.75732608]
[1609781069242,0.14825,31114.0,31110.0,0.13632608]
[1609781069443,0.01834919,31113.0,31110.0,0.13632608]
[1609781070848,0.14825,31114.0,31110.0,0.13632608]
[1609781071045,0.2768,31116.0,31110.0,0.13632608]
[1609781071244,0.13632608,31111.0,31110.0,0.13632608]
[1609781073148,0.13632608,31111.0,31096.0,4.1216]
[1609781073350,5.26,31114.0,31096.0,4.1216]
[1609781073548,0.42763,31116.0,31093.0,0.14513]
[1609781073748,3.6804,31104.0,31087.0,2.14256762]
[1609781073948,3.6804,31104.0,31088.0,2.14413057]
[1609781074851,0.1021,31105.0,31088.0,2.14413057]
[1609781075052,5.3056,31091.0,31088.0,2.14413057]
[1609781075253,5.3056,31091.0,31085.0,2.47403153]
[1609781075254,0.13632608,31089.0,31078.0,0.10827]
[1609781075453,0.13632608,31089.0,31077.0,2.14504595]
[1609781075753,5.3056,31091.0,31077.0,2.14504595]
[1609781076755,0.14819,31094.0,31073.0,0.13137]
[1609781076954,4.257,31082.0,31073.0,0.13137]
[1609781077353,0.13632608,31074.0,31068.0,2.14444679]
[1609781078457,4.257,31082.0,31068.0,2.14444679]
[1609781079257,4.257,31082.0,31073.0,0.13632608]
[1609781081461,0.13632608,31074.0,31073.0,0.13632608]
[1609781082361,0.15774,31084.0,31073.0,0.13632608]
[1609781082562,4.5189,31090.0,31073.0,0.13632608]
[1609781082563,4.5189,31090.0,31073.0,0.86342608]
[1609781082762,0.2942,31093.0,31073.0,0.13632608]
[1609781082962,0.2942,31093.0,31075.0,3.7241]
[1609781083763,0.14819,31094.0,31092.0,0.13632608]
[1609781083963,0.55948964,31102.0,31092.0,0.13632608]
[1609781084363,0.55948964,31102.0,31086.0,4.5698]
[1609781084563,0.55948964,31102.0,31080.0,5.1408]
[1609781084763,0.55948964,31102.0,31076.0,0.1771]
[1609781084963,0.55948964,31102.0,31065.0,5.3774]
[1609781085663,0.55948964,31102.0,31081.0,0.13632608]
[1609781087065,0.55948964,31102.0,31067.0,0.1564]
[1609781087664,0.55948964,31102.0,31076.0,0.13632608]
[1609781088769,0.55948964,31102.0,31067.0,0.1564]
[1609781089368,4.2595,31086.0,31067.0,0.1564]
[1609781089568,4.2595,31086.0,31070.0,2.13982877]
[1609781089767,4.42043,31086.0,31074.0,0.13632608]
[1609781091772,0.13632608,31075.0,31074.0,0.13632608]
[1609781097983,0.13632608,31075.0,31055.0,2.13493886]
[1609781099787,0.13632608,31063.0,31062.0,0.13632608]
[1609781100689,0.13632608,31063.0,31055.0,2.13493886]
[1609781100889,4.8588,31062.0,31055.0,2.13493886]
[1609781101791,0.13632608,31056.0,31055.0,2.13493886]
[1609781103295,0.76612608,31056.0,31055.0,2.13493886]
[1609781103997,0.6298,31056.0,31055.0,2.13493886]
[1609781104398,0.76612608,31056.0,31055.0,2.13493886]
[1609781105198,0.76612608,31056.0,31053.0,2.13315273]
[1609781105797,4.3699,31054.0,31053.0,2.13315273]
[1609781106809,4.3699,31054.0,31043.0,0.13632608]
[1609781107002,0.13632608,31056.0,31029.0,2.12456454]
[1609781107213,4.9817,31044.0,31029.0,2.27821454]
[1609781108602,0.41329,31055.0,31029.0,2.27821454]
[1609781108603,0.13632608,31030.0,31029.0,0.15365]
[1609781109404,0.13632608,31030.0,31025.0,2.12539306]
[1609781109606,4.3954,31026.0,31025.0,2.12539306]
[1609781110299,4.3954,31026.0,31002.0,8.84711592]
[1609781110300,4.3954,31026.0,31009.0,2.11816018]
[1609781110499,4.3954,31026.0,31013.0,0.13632608]
[1609781110700,0.2737,31037.0,31013.0,0.27456608]
[1609781110899,4.07,31019.0,31013.0,0.27456608]
[1609781111299,0.2737,31037.0,31013.0,0.27456608]
[1609781111498,0.2737,31037.0,31018.0,3.9922]
[1609781111699,0.13124,31038.0,31019.0,0.0978]
[1609781112099,0.13124,31038.0,31018.0,3.9922]
[1609781112498,0.13124,31038.0,31013.0,0.13824]
[1609781112698,4.8134,31035.0,31013.0,0.13824]
[1609781112898,0.13632608,31019.0,31013.0,0.13824]
[1609781113099,0.0953,31018.0,31013.0,0.13824]
[1609781113902,0.13632608,31019.0,31013.0,0.13824]
[1609781114104,0.13632608,31019.0,31004.0,2.11724996]
[1609781114303,4.9784,31021.0,31012.0,0.10878]
[1609781115004,0.13632608,31013.0,31012.0,0.10878]
[1609781115305,4.97262608,31013.0,31005.0,0.13046]
[1609781115904,4.97262608,31013.0,30990.0,4.2487]
[1609781116605,4.97262608,31013.0,30991.0,0.0976]
[1609781116806,4.97262608,31013.0,30990.0,4.38038]
[1609781117004,0.13632608,30991.0,30990.0,0.13168]
[1609781117204,0.13632608,30991.0,30974.0,5.3729]
[1609781117407,0.13632608,30991.0,30974.0,5.47876]
[1609781118306,0.23172608,30991.0,30974.0,5.47876]
[1609781118908,0.23172608,30991.0,30989.0,0.13632608]
[1609781119309,0.0954,30991.0,30989.0,0.13632608]
[1609781119909,0.0954,30991.0,30982.0,0.0956]
[1609781120409,0.0954,30991.0,30974.0,0.10586]
[1609781120614,0.10237,30992.0,30974.0,0.10586]
[1609781121512,0.0976,30991.0,30976.0,0.13632608]
[1609781121712,0.0976,30991.0,30977.0,0.0962]
[1609781122514,4.7681,30985.0,30977.0,0.0962]
[1609781122711,4.7681,30985.0,30976.0,0.13632608]
[1609781123613,0.13632608,30977.0,30976.0,0.13632608]
[1609781124213,4.7681,30985.0,30974.0,0.10586]
[1609781124413,4.7681,30985.0,30974.0,0.13833]
[1609781124916,0.10237,30992.0,30974.0,0.13833]
[1609781125313,5.3988,30998.0,30974.0,0.13833]
[1609781125515,5.3988,30998.0,30974.0,0.75533]
[1609781125716,0.2969,31001.0,30982.0,0.13632608]
[1609781126316,0.2969,31001.0,30982.0,0.24596608]
[1609781126516,0.10063,31002.0,30982.0,0.24596608]
[1609781126717,0.2756,31016.0,30982.0,0.24596608]
[1609781126922,0.2756,31016.0,30982.0,0.10964]
[1609781127725,0.2756,31016.0,31005.0,0.13632608]
[1609781128126,0.2756,31016.0,30997.0,0.13096]
[1609781129623,0.2756,31016.0,31001.0,0.13632608]
[1609781130023,3.9726,31024.0,31001.0,0.13632608]
[1609781130624,3.9726,31024.0,30997.0,0.13096]
[1609781131026,4.12101,31024.0,30997.0,0.13096]
[1609781131632,4.12101,31024.0,31009.0,0.13632608]
[1609781131833,0.14841,31024.0,31009.0,0.13632608]
[1609781132428,0.14841,31024.0,31005.0,4.9354]
[1609781133635,0.14841,31024.0,31021.0,0.13632608]
[1609781134839,4.6152,31048.0,31021.0,0.13632608]
[1609781135646,4.6152,31048.0,31027.0,0.13632608]
[1609781135853,4.6152,31048.0,31017.0,4.0098]
[1609781136042,4.77593,31048.0,31017.0,4.0098]
[1609781137639,0.13632608,31023.0,31022.0,0.13632608]
[1609781137837,4.77593,31048.0,31022.0,0.13632608]
[1609781138139,4.77593,31048.0,31017.0,4.0098]
[1609781138637,4.77593,31048.0,31018.0,0.098]
[1609781138840,4.77593,31048.0,31017.0,4.0098]
[1609781139237,0.0952,31047.0,31017.0,4.0098]
[1609781139437,4.77593,31048.0,31017.0,4.0098]
[1609781139838,4.77593,31048.0,31019.0,0.13632608]
[1609781140238,4.77593,31048.0,31018.0,0.0953]
[1609781140438,4.77593,31048.0,31017.0,4.0098]
[1609781140641,0.097,31047.0,31017.0,4.0098]
[1609781141039,4.77593,31048.0,31017.0,4.0098]
[1609781141540,4.77593,31048.0,31018.0,0.0961]
[1609781141742,0.13632608,31019.0,31018.0,0.0961]
[1609781142743,0.13632608,31019.0,31016.0,0.13632608]
[1609781142943,0.0965,31018.0,31016.0,0.13632608]
[1609781143146,0.12285,31029.0,31016.0,0.13632608]
[1609781143344,0.12285,31029.0,31014.0,0.12823]
[1609781143545,0.12285,31029.0,31011.0,5.3763]
[1609781143844,0.12285,31029.0,31024.0,0.13632608]
[1609781144944,0.12285,31029.0,31014.0,3.72906]
[1609781145858,0.12285,31029.0,31028.0,0.13632608]
[1609781146450,0.16073,31048.0,31028.0,0.13632608]
[1609781146648,0.0976,31047.0,31026.0,4.2538]
[1609781146848,0.16073,31048.0,31026.0,4.2538]
[1609781147050,4.164,31059.0,31026.0,4.2538]
[1609781147750,0.0951,31058.0,31027.0,0.0964]
[1609781147950,0.0951,31058.0,31043.0,0.13632608]
[1609781148152,0.19631,31058.0,31043.0,0.13632608]
[1609781148551,0.19631,31058.0,31032.0,0.10769]
[1609781148951,0.19631,31058.0,31032.0,0.86149]
[1609781149153,0.10121,31058.0,31032.0,0.86149]
[1609781151057,0.10121,31058.0,31032.0,0.10769]
[1609781151256,0.10121,31058.0,31036.0,4.8363]
[1609781151455,0.10121,31058.0,31037.0,0.0979]
[1609781151855,0.10121,31058.0,31036.0,4.8363]
[1609781152055,0.10121,31058.0,31057.0,0.13632608]
[1609781152454,0.19891,31058.0,31057.0,0.13632608]
[1609781152655,0.0977,31058.0,31057.0,0.13632608]
[1609781153455,0.0975,31070.0,31057.0,0.13632608]
[1609781153658,0.0975,31070.0,31052.0,0.1431]
[1609781153856,0.036,31070.0,31062.0,5.1831]
[1609781154058,0.13632608,31082.0,31069.0,0.13632608]
[1609781154257,0.13632608,31082.0,31071.0,0.7673]
[1609781154458,0.01271281,31085.0,31071.0,0.7673]
[1609781156161,0.13632608,31083.0,31080.0,0.13632608]
[1609781156959,0.01271281,31085.0,31080.0,0.13632608]
[1609781157761,0.0965,31084.0,31080.0,0.13632608]
[1609781157961,0.01271281,31085.0,31080.0,0.13632608]
[1609781158161,0.14903889,31085.0,31084.0,0.13632608]
[1609781158363,0.13632608,31085.0,31084.0,0.13632608]
[1609781158965,0.23192608,31085.0,31084.0,0.13632608]
[1609781159963,0.05372608,31085.0,31084.0,0.13632608]
[1609781160564,0.00932608,31085.0,31084.0,0.13632608]
[1609781160965,0.10642608,31085.0,31084.0,0.13632608]
[1609781161165,0.0971,31085.0,31084.0,0.13632608]
[1609781162267,0.0958,31096.0,31084.0,0.13632608]
[1609781162268,0.13632608,31097.0,31084.0,0.13632608]
[1609781162467,0.13632608,31097.0,31085.0,0.5366]
[1609781163067,0.13632608,31097.0,31085.0,0.15177]
[1609781163270,0.13632608,31097.0,31086.0,5.2518]
[1609781163468,0.0975,31103.0,31086.0,5.2518]
[1609781163869,0.00373679,31110.0,31086.0,5.2518]
[1609781164269,0.00373679,31110.0,31109.0,0.13632608]
[1609781164470,0.01278628,31117.0,31109.0,0.13632608]
[1609781165471,0.2755,31126.0,31109.0,0.13632608]
[1609781165769,0.2755,31126.0,31103.0,0.0965]
[1609781166169,0.13632608,31104.0,31103.0,0.0965]
[1609781166370,0.13632608,31104.0,31097.0,4.7558]
[1609781167872,0.0965,31111.0,31097.0,4.7558]
[1609781168073,0.0505,31111.0,31097.0,4.7558]
[1609781168274,0.13632608,31118.0,31110.0,0.13632608]
[1609781168476,0.097,31119.0,31110.0,0.13632608]
[1609781168673,0.10399,31124.0,31110.0,0.13632608]
[1609781169675,0.00373249,31133.0,31110.0,0.13632608]
[1609781169981,0.0951,31137.0,31110.0,0.13632608]
[1609781170176,0.0951,31137.0,31134.0,0.13632608]
[1609781170578,0.01280516,31152.0,31120.0,0.1194]
[1609781170778,4.1289,31135.0,31120.0,0.1194]
[1609781171380,4.1289,31135.0,31121.0,0.0963]
[1609781171578,0.10438,31136.0,31120.0,0.1194]
[1609781171778,0.0976,31135.0,31120.0,0.1194]
[1609781171977,0.10438,31136.0,31120.0,0.1194]
[1609781172581,0.10438,31136.0,31135.0,0.13632608]
[1609781172779,0.10438,31136.0,31129.0,0.0968]
[1609781172980,0.20108,31136.0,31129.0,0.0968]
[1609781173179,0.10438,31136.0,31120.0,0.1194]
[1609781174184,0.0976,31135.0,31120.0,0.2162]
[1609781174585,0.0014,31135.0,31120.0,0.8529]
[1609781174786,0.0953,31145.0,31120.0,0.2162]
[1609781174987,0.0953,31145.0,31144.0,0.13632608]
[1609781175190,0.11704,31149.0,31144.0,0.13632608]
[1609781175388,0.11704,31149.0,31134.0,0.15746]
[1609781175787,0.11704,31149.0,31134.0,0.67916]
[1609781175988,0.12107,31157.0,31134.0,0.15746]
[1609781176189,0.12107,31157.0,31140.0,3.9716]
[1609781176989,0.25739608,31157.0,31156.0,0.13632608]
[1609781177692,0.24999608,31157.0,31156.0,0.13632608]
[1609781177890,0.10907,31157.0,31149.0,0.13701]
[1609781178092,0.0003232,31167.0,31154.0,5.2865]
[1609781178291,0.0003232,31167.0,31155.0,0.0962]
[1609781178693,0.0003232,31167.0,31149.0,0.13701]
[1609781179494,0.0003232,31167.0,31149.0,3.81651]
[1609781179895,0.0003232,31167.0,31149.0,0.13701]
[1609781180095,0.0003232,31167.0,31160.0,5.0033]
[1609781181696,0.1771,31191.0,31160.0,5.0033]
[1609781182097,0.1771,31191.0,31160.0,5.11983]
[1609781182298,0.1771,31191.0,31166.0,0.13632608]
[1609781182499,0.2889,31196.0,31166.0,0.13632608]
[1609781183198,0.39427,31196.0,31160.0,5.11983]
[1609781183599,0.53059608,31196.0,31195.0,0.13632608]
[1609781184014,0.24169608,31196.0,31195.0,0.13632608]
[1609781184206,0.10537,31196.0,31179.0,0.1023]
[1609781185604,0.24169608,31196.0,31195.0,0.13632608]
[1609781186705,0.24169608,31196.0,31179.0,0.1023]
[1609781187604,0.10537,31196.0,31179.0,0.1023]
[1609781188107,0.10537,31196.0,31195.0,0.13632608]
[1609781188306,0.13632608,31198.0,31195.0,0.13632608]
[1609781188505,0.13632608,31198.0,31179.0,0.1023]
[1609781188506,0.2791,31215.0,31186.0,0.11227]
[1609781189808,0.2791,31215.0,31186.0,5.12437]
[1609781190208,0.2791,31215.0,31199.0,0.13632608]
[1609781191308,0.2791,31215.0,31199.0,0.13436893]
[1609781192107,0.2791,31215.0,31193.0,0.12142]
[1609781192408,0.09906,31217.0,31193.0,0.12142]
[1609781192609,0.23538608,31217.0,31211.0,0.13632608]
[1609781194109,0.09906,31217.0,31211.0,0.13632608]
[1609781194710,0.09906,31217.0,31206.0,4.8926]
[1609781194912,0.09906,31217.0,31203.0,0.12169]
[1609781195114,0.13632608,31208.0,31203.0,0.12169]
[1609781195613,0.09906,31217.0,31203.0,0.12169]
[1609781196215,0.09906,31217.0,31206.0,4.8084]
[1609781197117,0.09906,31217.0,31216.0,0.13632608]
[1609781197316,0.2798,31239.0,31216.0,0.13632608]
[1609781197517,0.01293388,31247.0,31216.0,0.13632608]
[1609781197717,0.01293388,31247.0,31228.0,5.0287]
[1609781197917,0.01293388,31247.0,31219.0,0.10501]
[1609781198118,0.15027388,31247.0,31246.0,5.3456]
[1609781198422,0.00911557,31251.0,31246.0,5.3456]
[1609781198619,0.47155655,31252.0,31246.0,5.3456]
[1609781198818,0.22215655,31252.0,31246.0,5.3456]
[1609781199018,0.15015655,31252.0,31246.0,5.3456]
[1609781199419,0.5107871,31254.0,31246.0,5.3456]
[1609781199620,0.4883871,31254.0,31246.0,5.3456]
[1609781199820,0.3732871,31254.0,31246.0,5.3456]
[1609781200021,0.2883,31291.0,31246.0,5.3456]
[1609781200221,0.2883,31291.0,31280.0,0.13632608]
[1609781200422,0.2883,31291.0,31260.0,0.10704]
[1609781200622,0.14624,31286.0,31265.0,4.8049]
[1609781202225,0.13632608,31266.0,31265.0,4.8049]
[1609781202625,0.13632608,31266.0,31262.0,0.13632608]
[1609781203024,0.10065,31270.0,31262.0,0.13632608]
[1609781203225,0.10065,31270.0,31262.0,0.28627608]
[1609781203425,0.14624,31286.0,31262.0,0.28627608]
[1609781204126,0.14624,31286.0,31262.0,0.14995]
[1609781204732,0.14624,31286.0,31270.0,0.13632608]
[1609781204928,0.14624,31286.0,31270.0,0.72342608]
[1609781205130,0.14624,31286.0,31270.0,0.5871]
[1609781205629,0.2883,31291.0,31270.0,0.5871]
[1609781206728,0.13632608,31271.0,31270.0,0.5871]
[1609781207328,0.14911,31284.0,31270.0,0.5871]
[1609781208930,0.14911,31284.0,31282.0,0.13632608]
[1609781210933,0.14911,31284.0,31270.0,0.7214]
[1609781211335,0.13204,31291.0,31270.0,0.7214]
[1609781211533,0.13204,31291.0,31290.0,0.13632608]
[1609781212334,0.2724,31324.0,31290.0,0.13632608]
[1609781213435,0.13632608,31291.0,31290.0,0.13632608]
[1609781215137,0.13632608,31291.0,31282.0,0.10679]
[1609781215337,3.7069,31291.0,31270.0,0.1343]
[1609781215736,0.13632608,31271.0,31270.0,0.1343]
[1609781215936,0.13632608,31271.0,31267.0,0.13632608]
[1609781216636,0.13585,31272.0,31253.0,0.14783]
[1609781216837,0.13585,31272.0,31252.0,0.11826]
[1609781217337,0.13585,31272.0,31252.0,4.67046]
[1609781217736,0.13585,31272.0,31264.0,0.13632608]
[1609781218137,0.13585,31272.0,31252.0,0.11826]
[1609781219836,0.13632608,31258.0,31252.0,0.11826]
[1609781220636,0.13632608,31258.0,31238.0,3.7566]
[1609781220837,0.13632608,31258.0,31172.0,1.9919591]
[1609781221037,0.13632608,31258.0,31225.0,3.797]
[1609781221840,0.11329,31263.0,31240.0,0.13632608]
[1609781223841,0.13632608,31241.0,31240.0,0.13632608]
[1609781224041,0.25999608,31241.0,31240.0,0.13632608]
[1609781224643,0.12367,31241.0,31225.0,3.797]
[1609781224845,0.12367,31241.0,31217.0,0.13471]
[1609781225744,0.12367,31241.0,31237.0,0.13632608]
[1609781226647,0.12367,31241.0,31225.0,0.11974]
[1609781227847,0.12367,31241.0,31240.0,0.13632608]
[1609781228848,0.12367,31241.0,31225.0,0.11974]
[1609781229251,3.9899,31262.0,31225.0,0.11974]
[1609781229849,3.9899,31262.0,31245.0,0.13632608]
[1609781230751,3.9899,31262.0,31224.0,4.5502]
[1609781231954,0.11329,31263.0,31217.0,0.13471]
[1609781232173,5.2424,31249.0,31217.0,0.13471]
[1609781232353,5.2424,31249.0,31202.0,4.4419]
[1609781232553,0.13675,31249.0,31214.0,0.15375]
[1609781232754,5.1729,31234.0,31214.0,0.15375]
[1609781233360,5.31052,31234.0,31215.0,0.13632608]
[1609781233963,5.31052,31234.0,31206.0,0.15686]
[1609781234154,5.31052,31234.0,31192.0,4.5014]
[1609781235757,5.31052,31234.0,31210.0,0.13632608]
[1609781236659,5.31052,31234.0,31192.0,4.5014]
[1609781237860,5.31052,31234.0,31200.0,0.13632608]
[1609781239763,5.31052,31234.0,31192.0,4.5014]
[1609781240266,5.31052,31234.0,31203.0,0.13632608]
[1609781242267,5.31052,31234.0,31209.0,0.13632608]
[1609781243869,5.31052,31234.0,31192.0,4.5014]
[1609781244370,5.31052,31234.0,31220.0,0.13632608]
[1609781244571,0.13762,31234.0,31220.0,0.13632608]
[1609781244770,0.13762,31234.0,31207.0,3.8243]
[1609781244970,0.278,31237.0,31188.0,0.16091]
[1609781245171,0.15357,31234.0,31198.0,3.7038]
[1609781246173,0.11717,31234.0,31198.0,3.7038]
[1609781246375,0.11717,31234.0,31215.0,0.13632608]
[1609781246573,0.11717,31234.0,31198.0,3.7038]
[1609781247377,0.11717,31234.0,31199.0,0.0949]
[1609781248375,0.11717,31234.0,31230.0,0.13632608]
[1609781248977,0.11717,31234.0,31219.0,3.9896]
[1609781249177,0.11717,31234.0,31203.0,0.09704]
[1609781249376,4.066,31231.0,31203.0,0.09704]
[1609781249576,4.066,31231.0,31198.0,4.615]
[1609781250077,4.066,31231.0,31198.0,4.7125]
[1609781250477,0.13632608,31227.0,31222.0,0.13632608]
[1609781250678,0.28233608,31227.0,31222.0,0.13632608]
[1609781252081,0.14601,31227.0,31221.0,0.0953]
[1609781252588,0.14601,31227.0,31223.0,0.13632608]
[1609781254684,0.13632608,31224.0,31223.0,0.13632608]
[1609781255385,4.08292608,31224.0,31219.0,0.0962]
[1609781255589,4.08292608,31224.0,31212.0,0.0972]
[1609781255786,0.13632608,31224.0,31204.0,0.0971]
[1609781255985,4.77359,31213.0,31181.0,4.648]
[1609781256186,0.09719,31213.0,31181.0,0.113]
[1609781256386,5.31984,31202.0,31181.0,0.113]
[1609781256588,0.11324,31202.0,31181.0,0.113]
[1609781256988,4.5865,31194.0,31161.0,0.1771]
[1609781257190,4.68576,31194.0,31184.0,0.13632608]
[1609781257587,4.68576,31194.0,31171.0,2.19879625]
[1609781258188,4.68576,31194.0,31171.0,0.11504]
[1609781258387,4.68576,31194.0,31172.0,0.0962]
[1609781259188,0.13632608,31191.0,31190.0,0.13632608]
[1609781259789,0.09926,31194.0,31190.0,0.13632608]
[1609781260490,0.05726,31194.0,31190.0,0.13632608]
[1609781262192,0.11324,31202.0,31190.0,0.13632608]
[1609781262593,0.2971,31212.0,31190.0,0.13632608]
[1609781262794,0.1698,31212.0,31190.0,0.13632608]
[1609781263193,0.1698,31212.0,31211.0,0.13632608]
[1609781263394,5.0111,31226.0,31211.0,0.13632608]
[1609781264296,0.14601,31227.0,31211.0,0.13632608]
[1609781264695,0.0946,31229.0,31211.0,0.13632608]
[1609781264994,4.0086,31238.0,31211.0,0.13632608]
[1609781265195,0.13632608,31217.0,31216.0,0.13632608]
[1609781265594,0.11415,31217.0,31216.0,0.13632608]
[1609781268094,0.15838,31224.0,31216.0,0.13632608]
[1609781268496,0.15838,31224.0,31214.0,5.16766]
[1609781269095,0.13479,31234.0,31214.0,5.16766]
[1609781269997,0.13479,31234.0,31233.0,0.13632608]
[1609781270498,0.56266498,31254.0,31222.0,0.11822]
[1609781270700,0.11657,31243.0,31227.0,4.1994]
[1609781271097,0.10947,31243.0,31227.0,4.1994]
[1609781271297,0.07767,31243.0,31227.0,4.1994]
[1609781271498,0.07767,31243.0,31228.0,0.0945]
[1609781271897,0.07767,31243.0,31242.0,0.13632608]
[1609781272298,7e-05,31243.0,31242.0,0.13632608]
[1609781273098,0.0963,31261.0,31242.0,0.13632608]
[1609781273501,0.56910886,31268.0,31242.0,0.13632608]
[1609781273901,0.13632608,31262.0,31260.0,0.13632608]
[1609781274102,0.13632608,31262.0,31238.0,0.25519]
[1609781274301,0.703,31261.0,31238.0,0.25519]
[1609781274502,0.703,31261.0,31230.0,0.13653]
[1609781276005,0.703,31261.0,31231.0,0.0956]
[1609781276407,0.703,31261.0,31229.0,3.689]
[1609781277006,0.23038,31262.0,31222.0,0.11822]
[1609781277208,4.1728,31256.0,31222.0,0.11822]
[1609781277407,0.0948,31255.0,31219.0,0.0951]
[1609781277607,0.2395,31255.0,31214.0,4.72006]
[1609781277808,0.68936906,31253.0,31214.0,4.72006]
[1609781278007,0.0964,31252.0,31228.0,0.13632608]
[1609781278508,0.68773804,31244.0,31228.0,0.13632608]
[1609781278708,0.21305,31243.0,31228.0,0.13632608]
[1609781278908,0.21305,31243.0,31229.0,0.0963]
[1609781279309,0.21305,31243.0,31214.0,4.6091]
[1609781279508,0.21305,31243.0,31212.0,0.0949]
[1609781279710,4.7952,31241.0,31212.0,0.0949]
[1609781280007,4.7952,31241.0,31218.0,0.13632608]
[1609781281209,0.68646323,31237.0,31218.0,0.13632608]
[1609781281409,0.0947,31236.0,31218.0,0.13632608]
[1609781281611,0.23587,31236.0,31218.0,0.13632608]
[1609781282008,0.13632608,31219.0,31218.0,0.13632608]
[1609781282211,0.13632608,31219.0,31200.0,0.13515]
[1609781282410,0.27817608,31219.0,31200.0,0.13515]
[1609781284110,0.14185,31219.0,31216.0,0.13632608]
[1609781285909,0.14185,31219.0,31200.0,0.13515]
[1609781286112,0.13632608,31213.0,31212.0,0.13632608]
[1609781288513,0.10312608,31213.0,31212.0,0.13632608]
[1609781288718,0.68701464,31227.0,31213.0,0.0968]
[1609781288915,0.68701464,31227.0,31207.0,4.3119]
[1609781289116,0.81127629,31225.0,31207.0,4.3119]
[1609781290114,0.81127629,31225.0,31224.0,0.13632608]
[1609781291117,0.81127629,31225.0,31223.0,0.0971]
[1609781291317,0.12369,31225.0,31223.0,0.0971]
[1609781291716,0.12369,31225.0,31207.0,4.3119]
[1609781292018,0.12369,31225.0,31221.0,0.13632608]
[1609781292821,0.12369,31225.0,31221.0,0.23342608]
[1609781293620,0.12369,31225.0,31221.0,0.13632608]
[1609781293821,0.12369,31225.0,31181.0,2.1227026]
[1609781294021,0.13632608,31202.0,31201.0,0.13632608]
[1609781294221,0.13632608,31202.0,31181.0,2.1227026]
[1609781294222,0.29188608,31202.0,31181.0,2.1227026]
[1609781296122,0.15556,31202.0,31198.0,0.13632608]
[1609781298022,0.13632608,31199.0,31198.0,0.13632608]
[1609781300327,0.13632608,31199.0,31198.0,0.097]
[1609781300525,0.13632608,31199.0,31189.0,4.4911]
[1609781300725,0.13632608,31199.0,31186.0,0.0964]
[1609781302226,0.15556,31202.0,31187.0,0.13632608]
[1609781302426,0.57803855,31206.0,31187.0,0.13632608]
[1609781302627,0.5539,31205.0,31187.0,0.13632608]
[1609781303127,0.57803855,31206.0,31187.0,0.13632608]
[1609781303329,0.57735576,31204.0,31187.0,0.13632608]
[1609781303528,3.92435,31202.0,31187.0,0.13632608]
[1609781304027,3.92435,31202.0,31168.0,5.22654]
[1609781304227,0.13632608,31188.0,31176.0,0.13632608]
[1609781304428,0.24606608,31188.0,31176.0,0.13632608]
[1609781305533,4.5571,31177.0,31176.0,0.13632608]
[1609781305730,4.71008,31177.0,31176.0,0.13632608]
[1609781306132,0.28930608,31177.0,31159.0,2.12141702]
[1609781306331,4.2241,31164.0,31159.0,2.12141702]
[1609781306933,4.2241,31164.0,31152.0,2.12165669]
[1609781307733,0.15517,31166.0,31152.0,2.12165669]
[1609781307932,5.2142,31153.0,31152.0,2.12165669]
[1609781308134,5.35052608,31153.0,31152.0,2.25798277]
[1609781308433,5.35052608,31153.0,31152.0,0.13632608]
[1609781312237,0.13632608,31153.0,31148.0,0.13632608]
[1609781312437,0.15023,31155.0,31132.0,2.11647201]
[1609781312438,4.9471,31149.0,31132.0,2.11647201]
[1609781312637,0.15023,31155.0,31132.0,2.11647201]
[1609781312838,4.5809,31145.0,31132.0,2.11647201]
[1609781313239,4.72913,31145.0,31132.0,2.11647201]
[1609781313740,0.14823,31145.0,31121.0,2.11191346]
[1609781314138,4.8277,31138.0,31135.0,0.13632608]
[1609781314339,4.0807,31133.0,31121.0,2.11191346]
[1609781314538,4.21042,31133.0,31121.0,2.11191346]
[1609781315140,4.21042,31133.0,31115.0,2.49589772]
[1609781315141,4.21042,31133.0,31115.0,2.11222549]
[1609781316138,0.13632608,31116.0,31115.0,2.11222549]
[1609781316538,5.29662608,31116.0,31115.0,2.11222549]
[1609781316739,5.1603,31116.0,31107.0,2.10502743]
[1609781317539,0.15875,31119.0,31107.0,2.10502743]
[1609781317739,0.15875,31119.0,31102.0,0.0967]
[1609781318141,0.15875,31119.0,31118.0,0.13632608]
[1609781318340,5e-05,31119.0,31118.0,0.13632608]
[1609781321350,5e-05,31119.0,31102.0,0.0967]
[1609781321547,0.13632608,31127.0,31102.0,0.0967]
[1609781321848,0.13632608,31127.0,31100.0,2.10353599]
[1609781322148,0.12972,31133.0,31120.0,0.13632608]
[1609781322448,4.1136,31137.0,31097.0,3.9392]
[1609781322647,0.2816,31143.0,31096.0,0.15651]
[1609781322847,0.2816,31143.0,31095.0,2.09574983]
[1609781323046,4.6289,31125.0,31095.0,2.09574983]